Cogmind - Beta 9 @@@ ROGUE MODE // 2019.10.27 @ 16:43:23 Player: Dendrocnid Result: Self-destructed Performance ------------- Evolutions (1) 500 Regions Visited (2) 400 Robots Destroyed (23) 115 Value Destroyed (598) 598 Prototype IDs (0) 0 Alien Tech Used (0) 0 Bonus (0) 0 TOTAL SCORE: 1613 Bonus ------- None Cogmind --------- Core Integrity 53/400 Matter 300/300 Energy 100/100 System Corruption 0% Temperature Cool (0) Location -9/Materials Parts ------- Power (1) Propulsion (2) Utility (2) Large Storage Unit Weapon (4) Hammer Maul Inventory (10) Ion Engine Light Ion Engine Light Treads Light Treads Cooling System Large Storage Unit Light Armor Plating Assault Rifle Rocket Launcher Peak State ------------ Power Ion Engine Propulsion Wheel Wheel Utility Large Storage Unit Light Armor Plating Weapon Maul Mining Claw Mining Claw Mining Claw Inventory Ion Engine Light Ion Engine Light Treads Light Treads Cooling System Cooling System Large Storage Unit Light Armor Plating Assault Rifle Rocket Launcher [Rating: 11] Favorites ----------- Power Ion Engine Engine Ion Engine Propulsion Wheel Wheel Wheel Utility Large Storage Unit Device Improved Heat Sink Storage Large Storage Unit Protection Light Armor Plating Weapon Mining Claw Energy Gun EM Pulse Gun Ballistic Gun Assault Rifle Impact Weapon Hammer Slashing Weapon Mining Claw Build | -11 -10 -9 ------- Run | Scr Mat Mat Slots Evolved 2 | . . 2 Power . | . . . Propulsion . | . . . Utility . | . . . Weapon 2 | . . 2 Parts Attached 28 | 6 11 11 Power 3 | 1 2 . Engine 3 | 1 2 . Core . | . . . Reactor . | . . . Propulsion 8 | 2 4 2 Treads . | . . . Leg . | . . . Wheel 8 | 2 4 2 Hover . | . . . Flight . | . . . Utility 5 | 1 3 1 Device 1 | . 1 . Storage 3 | 1 2 . Processor . | . . . Hackware . | . . . Protection 1 | . . 1 Artifact . | . . . Weapon 12 | 2 2 8 Energy Gun 2 | 1 . 1 Energy Cannon . | . . . Ballistic Gun 2 | 1 . 1 Ballistic Cannon . | . . . Launcher . | . . . Special Weapon . | . . . Impact Weapon 3 | . . 3 Slashing Weapon 5 | . 2 3 Piercing Weapon . | . . . Special Melee Weapon . | . . . Unidentified Prototypes . | . . . Parts Lost 15 | . 5 10 Power 2 | . 1 1 Propulsion 6 | . 2 4 Utility 2 | . 1 1 Weapon 5 | . 1 4 Highest Loss Streak 7 | . 3 7 Average Slot Usage (%) 85 | . 88 82 Engine 12 | . 13 10 Wheel 23 | . 27 19 Device 1 | . 2 . Storage 15 | . 18 11 Protection 3 | . . 9 Energy Gun 4 | . 3 7 Ballistic Gun 3 | . . 6 Impact Weapon 2 | . . 5 Slashing Weapon 17 | . 19 14 Naked Turns . | . . . Heaviest Build 33 | 13 33 33 Greatest Support 26 | 26 26 20 Greatest Overweight (x) 3 | . 2 3 Average Overweight (x) . | . . 1 Largest Inventory Capacity 14 | 6 14 10 Average Capacity 9 | 5 10 10 Most Carried 10 | 6 10 10 Average Carried 8 | 2 9 8 Final Capacity 10 | . . 10 Final Carried 9 | . . 9 Class Distribution -------------------- 100% | Mutant Dominant Class ---------------- Mutant | -10/Materials Mutant | -9/Materials Resources | -11 -10 -9 ----------- Run | Scr Mat Mat Matter Collected 418 | 85 250 83 Remotely . | . . . Salvage Created 784 | . 469 315 Parts 61 | . 33 28 Haulers Intercepted 1 | . 1 . Recyclers Shooed . | . . . Parts Field Recycled . | . . . Retrieved Matter . | . . . Parts Self-Destructed . | . . . Prevented . | . . . Kills | -11 -10 -9 ------- Run | Scr Mat Mat Combat Hostiles Destroyed 21 | . 13 8 Melee 21 | . 13 8 Classes Destroyed 6 | . 4 2 Hauler 1 | . 1 . Operator 1 | . 1 . Swarmer 8 | . 6 2 Grunt 9 | . 7 2 Brawler 1 | . . 1 Sentry 3 | . . 3 Best Kill Streak 4 | . 4 2 Combat Bots Only 4 | . 4 2 Max Kills in Single Turn 1 | . 1 1 Gunslinging . | . . . Exploded . | . . . Melee 1 | . 1 1 Uniques/NPCs Destroyed . | . . . Combat | -11 -10 -9 -------- Run | Scr Mat Mat Damage Taken 1610 | . 619 991 Core 535 | . 188 347 Absorbed by Shields . | . . . Core Remaining (%) 62 | 100 24 . Volleys Fired 5 | . 3 2 Largest 2 | . 1 2 Hottest 60 | . 40 60 Shots Fired 7 | . 3 4 Gun 7 | . 3 4 Cannon . | . . . Launcher . | . . . Special . | . . . Kinetic 2 | . . 2 Thermal . | . . . Explosive . | . . . Electromagnetic 5 | . 3 2 Robot Hit Streak 4 | . . 4 Robot Miss Streak 3 | . 3 . Penetration Max . | . . . Secondary Targets . | . . . Shots Hit Robots 64 | . 39 25 Core Hits 27 | . 16 11 Critical Hits 1 | . 1 . Critical Kills . | . . . Critical Parts Destroyed 1 | . 1 . Melee Attacks 109 | . 67 42 Impact 5 | . . 5 Slashing 104 | . 67 37 Piercing . | . . . Sneak Attacks 3 | . 2 1 Combat Hostiles . | . . . Follow-up Attacks 12 | . 7 5 Damage Inflicted 1576 | . 1004 572 Guns 65 | . 18 47 Cannons . | . . . Explosions . | . . . Melee 1511 | . 986 525 Ramming . | . . . Kinetic 27 | . . 27 Thermal . | . . . Explosive . | . . . Electromagnetic 38 | . 18 20 Impact 67 | . . 67 Slashing 1444 | . 986 458 Piercing . | . . . Highest Corruption . | . . . Average Corruption . | . . . Corruption Purged . | . . . Overload Shots . | . . . Overflow Damage 71 | . 35 36 Projectiles . | . . . Explosions . | . . . Melee 71 | . 35 36 Knockbacks . | . . . Impact . | . . . Kinetic . | . . . Secondary . | . . . Self-Inflicted Damage . | . . . Shots . | . . . Rammed 2 | . . 2 Targets Rammed 2 | . . 2 Kicked . | . . . Crushed . | . . . Highest Temperature 20 | . . 20 Average Temperature 12 | . . 12 Received Heat Transfer 264 | . 135 129 Siege Activations . | . . . Robots Corrupted . | . . . Combat Hostiles . | . . . Parts Fried . | . . . Impact Corruptions . | . . . Robots Melted . | . . . Combat Hostiles . | . . . Parts Melted . | . . . Heat Transferred . | . . . Parts Sabotaged . | . . . Parts Stolen . | . . . Parts Stripped . | . . . Power Chain Reactions . | . . . Missiles Intercepted . | . . . Alert | -11 -10 -9 ------- Run | Scr Mat Mat Peak Influence 305 | . 305 285 Average Influence 160 | . 164 174 Maximum Alert Level 1 | . 1 1 Low Security (%) 65 | . . . Level 1 34 | . . . Level 2 . | . . . Level 3 . | . . . Level 4 . | . . . Level 5 . | . . . High Security . | . . . Max Security . | . . . Squads Dispatched 4 | . 4 . Investigation 2 | . 2 . Extermination . | . . . Reinforcement 2 | . 2 . Assault . | . . . Garrison . | . . . Intercept . | . . . Construction Impeded . | . . . Haulers Reinforced . | . . . Stealth | -11 -10 -9 --------- Run | Scr Mat Mat Distress Signals 2 | . 1 1 Communications Jammed . | . . . Distress Signals . | . . . Times Spotted 39 | . 21 18 Peak Tracking Total 6 | . 5 6 Tactical Retreats 2 | . 1 1 Traps | -11 -10 -9 ------- Run | Scr Mat Mat Traps Triggered 2 | . 2 . Indirectly . | . . . Trap Hack Attempts . | . . . Triggered . | . . . Disarmed . | . . . Reprogrammed . | . . . Reused . | . . . Traps Extracted . | . . . Installed . | . . . Triggered . | . . . Machines | -11 -10 -9 ---------- Run | Scr Mat Mat Machines Disabled 1 | . 1 . Max in Single Turn 1 | . 1 . Machines Sabotaged . | . . . Garrisons Compromised . | . . . Overloaded Fab Kills . | . . . Fab Network Shutdowns . | . . . Hacking | -11 -10 -9 --------- Run | Scr Mat Mat Machines Accessed 2 | . 1 1 Terminals 1 | . 1 . Fabricators . | . . . Repair Stations . | . . . Recycling Units . | . . . Scanalyzers 1 | . . 1 Garrison Access . | . . . Total Hacks 5 | . 1 4 Successful 4 | . . 4 Failed 1 | . 1 . Catastrophic 1 | . 1 . Database Lockouts . | . . . Manual 1 | . 1 . Terminals 1 | . 1 . Fabricators . | . . . Repair Stations . | . . . Recycling Units . | . . . Scanalyzers 4 | . . 4 Garrison Access . | . . . Terminal Hacks . | . . . Fabricator Hacks . | . . . Repair Station Hacks . | . . . Recycling Unit Hacks . | . . . Scanalyzer 4 | . . 4 Insert Component 2 | . . 2 Analyze 2 | . . 2 Garrison Access Hacks . | . . . Unauthorized Hacks . | . . . Terminals . | . . . Fabricators . | . . . Repair Stations . | . . . Recycling Units . | . . . Scanalyzers . | . . . Garrison Access . | . . . Data Cores Recovered . | . . . Used . | . . . Hacking Detections 1 | . 1 . Full Trace Events . | . . . Feedback Events . | . . . Feedback Blocked . | . . . Robot Schematics Acquired . | . . . Robots Built . | . . . Matter . | . . . Time . | . . . Total Robot Build Rating . | . . . Part Schematics Acquired 2 | . . 2 Parts Built . | . . . Matter . | . . . Time . | . . . Total Part Build Rating . | . . . Parts Repaired . | . . . Time . | . . . Parts Recycled . | . . . Recycled Matter . | . . . Retrieved Matter . | . . . Retrieved Components . | . . . Parts Scanalyzed 2 | . . 2 Part Schematics Acquired 2 | . . 2 Parts Damaged . | . . . Bothacking | -11 -10 -9 ------------ Run | Scr Mat Mat Used RIF Installer . | . . . Robots Hacked . | . . . Non-combat . | . . . Combat . | . . . Robot Hacks Applied . | . . . Relay Couplers Released . | . . . Robots Rewired . | . . . Allies Hacked . | . . . Hacks Repelled . | . . . Allies | -11 -10 -9 -------- Run | Scr Mat Mat Total Allies . | . . . Largest Group . | . . . Highest-Rated Group . | . . . Highest-Rated Ally . | . . . Total Orders . | . . . Ally Attacks . | . . . Total Damage . | . . . Kills . | . . . Allies Corrupted . | . . . Allies Melted . | . . . Intel | -11 -10 -9 ------- Run | Scr Mat Mat Robot Analysis Total . | . . . Derelict Logs Recovered . | . . . Drone Launches . | . . . Drone Recoveries . | . . . Exploration | -11 -10 -9 ------------- Run | Scr Mat Mat Turns Passed 1082 | 56 592 434 Spaces Moved 709 | 49 380 280 Core 5 | 5 . . Treads . | . . . Legs . | . . . Wheels 704 | 44 380 280 Hover . | . . . Flight . | . . . Fastest Speed 50 | 50 90 90 Average Speed 90 | 85 90 90 Slowest Speed 110 | 90 100 110 Overloaded Moves . | . . . Propulsion Burnouts . | . . . Robots Hopped . | . . . Cave-ins Triggered . | . . . Exploration Rate (%) 30 | 4 62 25 Regions Visited 2 Branch Regions . Pre-discovered Areas . | . . . Known Exits Taken . | . . . Unknown Exits Taken 2 | 1 1 . Scrap Searched . | . . . Spaces Dug 9 | . . 9 Terrain Destroyed 9 | . . 9 Melee 9 | . . 9 Projectile . | . . . AOE . | . . . Actions | -11 -10 -9 --------- Run | Scr Mat Mat Total 942 | 60 503 379 Wait 73 | . 33 40 Move 707 | 48 379 280 Hop . | . . . Pick Up 21 | 6 9 6 Fast Attach 10 | 6 1 3 Attach 10 | . 4 6 Detach 1 | . . 1 Swap 8 | . 6 2 Drop 11 | . 8 3 Fire 5 | . 3 2 Melee 94 | . 60 34 Ram 2 | . . 2 Kick . | . . . Crush . | . . . Escape Stasis . | . . . Rewire . | . . . Trap . | . . . Miscellaneous . | . . . Route ------- -11/Scrapyard -10/Materials (discovered 2 exits: *Mat / [*Min]) -9/Materials (discovered 1 exit: [*Mat]) History --------- Turn | Location | Event 21 | -11/Scrapyard | Discovered new exit (range 16) 57 | -11/Scrapyard | Entered Materials 230 | -10/Materials | Discovered new exit (range 16) 302 | -10/Materials | Build established: Mutant 386 | -10/Materials | Core integrity fell below 50% 500 | -10/Materials | Lost 3 parts (1n1u1w) 642 | -10/Materials | Discovered new exit (range 9) 649 | -10/Materials | Entered another Materials area 649 | -9/Materials | Evolved 2 slots: Weapon x2 802 | -9/Materials | Discovered new exit (range 13) 1069 | -9/Materials | Core integrity fell below 50% 1080 | -9/Materials | Core integrity fell below 20% 1083 | -9/Materials | Self-destructed Last Messages --------------- 01056_ Mining Claw follow-up attack on S-10 Pest. 01056_ S-10 Pest destroyed. 01059_ K-01 Serf collects debris. 01060_ Destroyed Flight Unit. 01061_ Mining Claw destroyed. 01062_ Ion Engine destroyed. 01063_ K-01 Serf collects debris. 01064_ Maul follow-up attack on S-10 Pest. 01065_ Mining Claw destroyed. 01066_ K-01 Serf cleans the Repair Station. 01067_ Sneak attack on K-01 Serf. 01067_ Destroyed Lgt. Ion Engine. 01068_ Mining Claw destroyed. 01070_ Slammed into S-10 Pest. 01070_ Destabilizing: Short circuit. 01070_ Hammer permanently disabled. 01074_ Slammed into S-10 Pest. 01075_ K-01 Serf collects debris. 01078_ K-01 Serf cleans the Repair Station. 01082_ K-01 Serf collects debris. Map ----- +----------------------------------------------------+ | ?????????????????????????????????????????????????? | | ?????????????????????????????????????????????????? | | ?????????????????????????????????????????????????? | | ?????????????????????????????????????????????????? | | ?????????????????????????????????????????????????? | | ?????????????????????????????????????????????????? | | ?????????????????????????????????????????????????? | | ?????????????????????????????????????????????????? | | ?????????????????????????????????????????????????? | | ?????????????????????????????????????????????????? | | ?????????????????????????????????????????????????? | | ?????????????????????????????????????????????????? | | ?????????????????????????????????????????????????? | | ??????????????? ?????????????????????????????????? | | ??????????????# ????????????????????????????????? | | ??????????????# ???????????????????????????????? | | ??????????????? ???????????????????????????????? | | ???????????????# ??????????????????????????????? | | ???????????????? ######????????????????????????? | | ????????????????? #????????????????????????? | | ?????????????????? #????????????????????????? | | ??????????????????? #?##?????????????????????? | | ????????????????????# #?# ##???????????????????? | | ????????????????????# ########?????????????????? | | ????????????????????# #[ss[s #?????????????????? | | ????????????????????# s/@*u%= #?????????????????? | | ????????????????????# #"""*t #?????????????????? | | ????????????????????# %"#"R k #?????????????????? | | ????????????????????# " #""" #?????????????????? | | ????????????????????+ + s #?????????????????? | | ????????????????????# ###########??????????????? | | ????????????????????# # #??????????????? | | ????????????????????# # ##?????????????? | | ????????????#########! # #?????????????? | | ??????????# """ """[+% # ##?????????????? | | ??????????# """ """[#= + ! """ #??????????????? | | ??????????# """ """ # # ! """ #??????????????? | | ??????????# # % # ! """ #??????????????? | | ??????????# # # ! #??????????????? | | ??????????# # ###########??????????????? | | ??????????# + # #???????????????? | | ??????????# # # #???????????????? | | ??????????########### # #???????????????? | | ???????############## # #??????##???????? | | ???????# + +% #??????# #####??? | | ???????# """ """ # #* #?#######"## #??? | | ???????# """ """ # # #?# " #??? | | ???????# """ """ # # #?### """ #??? | | ???????# # # #???#["R #??? | | ???????########+##### ##########???# """ #??? | +----------------------------------------------------+ Best States ------------- Heat Dissipation 39 Energy Generation 10 Energy Capacity 250 Matter Stores 300 Matter Capacity 300 Sight Range 16 Terrain Scan Density 10 Armor Coverage 150 Evasion (%) 42 Item Schematics ----------------- Mining Claw | -9/Materials | Scanalyzed Wheel | -9/Materials | Scanalyzed Robot Schematics ------------------ None Fabricated ------------ Nothing Alien Tech Used ----------------- None Achievements -------------- None Challenges ------------ None Game ------ Seed TargetRegenerativeWand Manual? 0 Play Time 00:15:20 Cumulative 87.9 hours Start 2019.10.27 @ 16:27:48 End 2019.10.27 @ 16:43:23 Sessions 1 Manual Loads 0 Difficulty Rogue Special Mode None Game No. 152 Rogue 152 Adventurer 0 Explorer 0 Win Type - Total 0 Types 0/0/0/0/0/0/0 Lore% 27 Gallery% 47 Achievement% 37 Wizard Run 0 Options --------- ASCII 0 Keyboard 0 Movement Mouse Keybinds 0 Fullscreen 1 Font 14/SmallcapsGlow Map View 84x54 Tactical HUD 1 Map Filters NONE Filters NONE Steam 1 RUN: e735b14a-77fb-4f2d-843f-51c37ffaf5c0